[Event "23rd ETCC Women 2021"]
[Site "Catez"]
[Date "2021.11.15"]
[Round "4.39"]
[White "Miturova, Magdalena"]
[Black "Simkunaite, Gabija"]
[Result "1/2-1/2"]
[ECO "A11"]
[WhiteElo "2248"]
[BlackElo "1962"]
[Annotator "NA"]
[PlyCount "108"]
[EventDate "2021.11.08"]
[EventType "team-tourn"]
[EventCountry "SLO"]
[SourceTitle "playchess.com"]
[Source "ChessBase"]
[SourceQuality "1"]
[WhiteTeam "Czech Republic"]
[BlackTeam "Lithuania"]
[WhiteTeamCountry "CZE"]
[BlackTeamCountry "LTU"]
[TimeControl "40/5400+30:1800+30"]

1. Nf3 {[%emt 0:00:09]} d5 {[%emt 0:00:15]} 2. c4 {[%emt 0:00:33]} c6 {[%emt 0:
01:19]} 3. e3 {[%emt 0:00:14]} Nf6 {[%emt 0:00:26]} 4. Nc3 {[%emt 0:00:20]} a6
{[%emt 0:02:22]} 5. b3 {[%emt 0:01:50]} Bg4 {[%emt 0:02:42]} 6. h3 {[%emt 0:00:
28]} Bh5 {[%emt 0:04:12]} 7. g4 {[%emt 0:01:08]} Bg6 {[%emt 0:00:10]} 8. Ne5 {
[%emt 0:00:19]} d4 {[%emt 0:03:33]} 9. exd4 {[%emt 0:22:28]} Qxd4 {[%emt 0:00:
07]} 10. Nxg6 {[%emt 0:04:34]} hxg6 {[%emt 0:05:01]} 11. Rg1 {[%emt 0:02:49]}
Nbd7 {[%emt 0:07:24]} 12. Qe2 {[%emt 0:05:07]} O-O-O {[%emt 0:12:34]} 13. Qe3 {
[%emt 0:10:02]} e5 {[%emt 0:04:15]} 14. Bb2 {[%emt 0:11:44]} Nc5 {[%emt 0:13:
13]} 15. O-O-O {[%emt 0:01:09]} Qxe3 {[%emt 0:01:54]} 16. dxe3 {[%emt 0:02:44]}
Rxd1+ {[%emt 0:00:51]} 17. Kxd1 {[%emt 0:03:46]} Be7 {[%emt 0:00:41]} 18. Kc2 {
[%emt 0:02:53]} Rd8 {[%emt 0:01:59]} 19. f4 {[%emt 0:13:36]} exf4 {[%emt 0:02:
35]} 20. exf4 {[%emt 0:00:08]} Ne6 {[%emt 0:00:14]} 21. Ne2 {[%emt 0:01:43]}
Ne4 {[%emt 0:07:22]} 22. Bc1 {[%emt 0:03:16]} Bc5 {[%emt 0:02:15]} 23. Rg2 {
[%emt 0:01:07]} g5 {[%emt 0:09:33]} 24. f5 {[%emt 0:01:36]} Nf8 {[%emt 0:02:08]
} 25. Ng3 {[%emt 0:01:14]} Nxg3 {[%emt 0:00:49]} 26. Rxg3 {[%emt 0:00:02]} f6 {
[%emt 0:00:15]} 27. Rd3 {[%emt 0:04:44]} Re8 {[%emt 0:01:04]} 28. Bd2 {[%emt 0:
00:30]} Nd7 {[%emt 0:03:54]} 29. b4 {[%emt 0:00:30]} Ba7 {[%emt 0:00:30]} 30.
c5 {[%emt 0:01:14]} Bb8 {[%emt 0:04:25]} 31. Re3 {[%emt 0:01:28]} Rxe3 {
[%emt 0:02:04]} 32. Bxe3 {[%emt 0:00:02]} Bg3 {[%emt 0:01:24]} 33. Be2 {
[%emt 0:01:22]} Kc7 {[%emt 0:01:44]} 34. Bd2 {[%emt 0:00:44]} a5 {[%emt 0:01:
26]} 35. a3 {[%emt 0:00:35]} axb4 {[%emt 0:00:07]} 36. axb4 {[%emt 0:00:03]}
Ne5 {[%emt 0:01:08]} 37. Kc3 {[%emt 0:01:21]} Bf2 {[%emt 0:01:07]} 38. Bd1 {
[%emt 0:01:10]} b5 {[%emt 0:00:25]} 39. cxb6+ {[%emt 0:00:28]} Kxb6 {[%emt 0:
00:29]} 40. Be2 {[%emt 0:00:39]} Nd7 {[%emt 0:01:48]} 41. Kc2 {[%emt 0:09:06]}
Ne5 {[%emt 0:01:30]} 42. Bc3 {[%emt 0:00:27]} Nf7 {[%emt 0:03:09]} 43. Kd2 {
[%emt 0:05:59]} Nd6 {[%emt 0:01:30]} 44. Bd3 {[%emt 0:01:17]} c5 {[%emt 0:01:
00]} 45. Ke2 {[%emt 0:00:24]} cxb4 {[%emt 0:02:29]} 46. Bxb4 {[%emt 0:00:10]}
Bc5 {[%emt 0:00:03]} 47. Be1 {[%emt 0:02:34]} Kc6 {[%emt 0:01:03]} 48. Kf3 {
[%emt 0:00:59]} Kd7 {[%emt 0:01:09]} 49. h4 gxh4 {[%emt 0:00:26]} 50. Bxh4 {
[%emt 0:00:21]} Ke7 {[%emt 0:01:03]} 51. g5 {[%emt 0:00:37]} fxg5 {[%emt 0:00:
22]} 52. Bxg5+ {[%emt 0:00:04]} Kf7 {[%emt 0:00:13]} 53. Kg4 {[%emt 0:01:34]}
Bd4 {[%emt 0:01:22]} 54. Bc2 {[%emt 0:00:12]} Nxf5 {[%emt 0:00:14]} 1/2-1/2

[Event "23rd ETCC Women 2021"]
[Site "Catez"]
[Date "2021.11.15"]
[Round "4.40"]
[White "Sibajeva, Marija"]
[Black "Nemcova, Karin"]
[Result "1/2-1/2"]
[ECO "B53"]
[WhiteElo "1946"]
[BlackElo "2169"]
[Annotator "NA"]
[PlyCount "82"]
[EventDate "2021.11.08"]
[EventType "team-tourn"]
[EventCountry "SLO"]
[SourceTitle "playchess.com"]
[Source "ChessBase"]
[SourceQuality "1"]
[WhiteTeam "Lithuania"]
[BlackTeam "Czech Republic"]
[WhiteTeamCountry "LTU"]
[BlackTeamCountry "CZE"]
[TimeControl "40/5400+30:1800+30"]

1. e4 {[%emt 0:00:03]} c5 {[%emt 0:00:10]} 2. Nf3 {[%emt 0:00:04]} d6 {[%emt 0:
00:08]} 3. d4 {[%emt 0:00:08]} cxd4 {[%emt 0:00:06]} 4. Qxd4 {[%emt 0:00:04]}
Nc6 {[%emt 0:02:16]} 5. Bb5 {[%emt 0:00:06]} Bd7 {[%emt 0:02:30]} 6. Bxc6 {
[%emt 0:00:06]} Bxc6 {[%emt 0:00:09]} 7. Nc3 {[%emt 0:00:04]} Nf6 {[%emt 0:00:
19]} 8. Bg5 {[%emt 0:00:07]} e5 {[%emt 0:01:59]} 9. Qd3 {[%emt 0:00:09]} Qb6 {
[%emt 0:05:56]} 10. O-O {[%emt 0:19:22]} Nd7 {[%emt 0:07:52]} 11. Be3 {[%emt 0:
08:17]} Qa5 {[%emt 0:02:51]} 12. a3 {[%emt 0:17:18]} Nc5 {[%emt 0:06:41]} 13.
Bxc5 {[%emt 0:09:18]} Qxc5 {[%emt 0:00:34]} 14. Rfd1 {[%emt 0:05:14]} Rc8 {
[%emt 0:03:21]} 15. b4 {[%emt 0:07:53]} Qb6 {[%emt 0:00:14]} 16. Rd2 {[%emt 0:
01:47]} a6 {[%emt 0:02:47]} 17. Nd5 {[%emt 0:00:47]} Bxd5 {[%emt 0:04:05]} 18.
Qxd5 {[%emt 0:00:08]} Qc6 {[%emt 0:00:37]} 19. Rc1 {[%emt 0:04:16]} g6 {
[%emt 0:01:57]} 20. Qxc6+ {[%emt 0:04:17]} bxc6 {[%emt 0:08:29]} 21. Rd3 {
[%emt 0:00:20]} Be7 {[%emt 0:00:40]} 22. c4 {[%emt 0:01:22]} f5 {[%emt 0:01:05]
} 23. Re1 {[%emt 0:00:54]} O-O {[%emt 0:07:09]} 24. c5 {[%emt 0:01:36]} d5 {
[%emt 0:02:27]} 25. Nxe5 {[%emt 0:01:18]} fxe4 {[%emt 0:00:26]} 26. Rh3 {
[%emt 0:03:56]} Bg5 {[%emt 0:06:05]} 27. f3 {[%emt 0:03:09]} Rfe8 {[%emt 0:07:
06]} 28. Ng4 {[%emt 0:01:29]} h5 {[%emt 0:03:47]} 29. Ne3 {[%emt 0:01:09]} d4 {
[%emt 0:05:21]} 30. Nc4 {[%emt 0:00:30]} e3 {[%emt 0:00:29]} 31. Nb2 {[%emt 0:
00:56]} e2 {[%emt 0:00:22]} 32. f4 {[%emt 0:03:01]} Bxf4 {[%emt 0:00:19]} 33.
Nc4 {[%emt 0:00:32]} Rcd8 {[%emt 0:01:41]} 34. Rd3 {[%emt 0:00:20]} Be3+ {
[%emt 0:01:14]} 35. Nxe3 {[%emt 0:00:32]} dxe3 {[%emt 0:00:29]} 36. Rd6 {
[%emt 0:01:18]} Rxd6 {[%emt 0:05:06]} 37. cxd6 {[%emt 0:00:05]} Re6 {[%emt 0:
00:24]} 38. Rxe2 {[%emt 0:00:21]} Kf7 {[%emt 0:00:20]} 39. g3 {[%emt 0:05:58]}
Rxd6 {[%emt 0:05:11]} 40. Rxe3 {[%emt 0:00:09]} Rd2 {[%emt 0:00:22]} 41. Rc3 {
[%emt 0:30:27]} Ra2 {[%emt 0:30:13]} 1/2-1/2

[Event "23rd ETCC Women 2021"]
[Site "Catez"]
[Date "2021.11.15"]
[Round "4.41"]
[White "Injac, Teodora"]
[Black "Unuk, Laura"]
[Result "1/2-1/2"]
[ECO "A07"]
[WhiteElo "2387"]
[BlackElo "2353"]
[Annotator "ChessBase"]
[PlyCount "116"]
[EventDate "2021.11.08"]
[EventType "team-tourn"]
[EventCountry "SLO"]
[SourceTitle "playchess.com"]
[Source "ChessBase"]
[SourceQuality "1"]
[WhiteTeam "Serbia"]
[BlackTeam "Slovenia"]
[WhiteTeamCountry "SRB"]
[BlackTeamCountry "SLO"]
[TimeControl "40/5400+30:1800+30"]

1. Nf3 {[%emt 0:00:05]} Nf6 {[%emt 0:00:45]} 2. g3 {[%emt 0:00:24]} d5 {
[%emt 0:00:33]} 3. Bg2 {[%emt 0:00:18]} g6 {[%emt 0:03:38]} 4. O-O {[%emt 0:05:
27]} Bg7 {[%emt 0:00:14]} 5. c4 {[%emt 0:04:03]} dxc4 {[%emt 0:06:14]} 6. Na3 {
[%emt 0:06:23]} Be6 {[%emt 0:07:08]} 7. Qc2 {[%emt 0:15:03]} O-O {[%emt 0:05:
02]} 8. Nxc4 {[%emt 0:02:08]} c5 {[%emt 0:08:44]} 9. d3 {[%emt 0:13:09]} Nc6 {
[%emt 0:01:28]} 10. Nce5 {[%emt 0:02:09]} Nxe5 {[%emt 0:03:59]} 11. Nxe5 {
[%emt 0:00:05]} Nd5 {[%emt 0:01:16]} 12. Nf3 {[%emt 0:12:03]} Rc8 {[%emt 0:02:
35]} 13. a3 {[%emt 0:01:41]} h6 {[%emt 0:03:26]} 14. e4 {[%emt 0:02:15]} Nb6 {
[%emt 0:09:18]} 15. Bd2 {[%emt 0:03:36]} Qd7 {[%emt 0:05:14]} 16. Bc3 {[%emt 0:
02:48]} Rfd8 {[%emt 0:04:57]} 17. Bxg7 {[%emt 0:07:04]} Kxg7 {[%emt 0:00:06]}
18. Rfd1 {[%emt 0:00:06]} Bg4 {[%emt 0:19:38]} 19. Qc3+ {[%emt 0:00:22]} f6 {
[%emt 0:00:13]} 20. Rac1 {[%emt 0:03:49]} e5 {[%emt 0:04:51]} 21. Qa5 {[%emt 0:
06:05]} Qa4 {[%emt 0:01:29]} 22. Qc3 {[%emt 0:04:49]} Nd7 {[%emt 0:02:04]} 23.
h3 {[%emt 0:00:53]} Bxf3 {[%emt 0:01:54]} 24. Bxf3 {[%emt 0:00:02]} Nf8 {
[%emt 0:01:50]} 25. Bg4 {[%emt 0:00:16]} Rc6 {[%emt 0:00:30]} 26. Rd2 {[%emt 0:
03:27]} Qd4 {[%emt 0:02:14]} 27. Qa5 {[%emt 0:01:15]} h5 {[%emt 0:00:57]} 28.
Bd1 {[%emt 0:00:47]} Ne6 {[%emt 0:01:45]} 29. Kg2 {[%emt 0:02:55]} Qd7 {
[%emt 0:00:58]} 30. Ba4 {[%emt 0:00:20]} Ng5 {[%emt 0:01:07]} 31. Rh1 {[%emt 0:
00:03]} Nxe4 {[%emt 0:00:17]} 32. Bxc6 {[%emt 0:01:00]} bxc6 {[%emt 0:00:41]}
33. Rdd1 {[%emt 0:00:55]} Ng5 {[%emt 0:01:18]} 34. Qxc5 {[%emt 0:00:04]} Ne6 {
[%emt 0:00:24]} 35. Qe3 {[%emt 0:00:38]} a5 {[%emt 0:00:36]} 36. Rc1 {[%emt 0:
00:59]} Rb8 {[%emt 0:00:34]} 37. Qe4 {[%emt 0:00:56]} Nd4 {[%emt 0:00:24]} 38.
Rb1 {[%emt 0:00:29]} Rb5 {[%emt 0:00:27]} 39. b4 {[%emt 0:00:34]} f5 {[%emt 0:
00:27]} 40. Qe3 {[%emt 0:00:08]} Nc2 {[%emt 0:00:30]} 41. Qf3 {[%emt 0:17:30]}
Nd4 {[%emt 0:04:28]} 42. Qe3 {[%emt 0:01:53]} Qd5+ {[%emt 0:03:05]} 43. f3 {
[%emt 0:00:57]} Qa2+ {[%emt 0:02:19]} 44. Qf2 {[%emt 0:00:02]} Qxa3 {[%emt 0:
00:09]} 45. bxa5 {[%emt 0:03:09]} Rxa5 {[%emt 0:08:05]} 46. Qd2 {[%emt 0:06:06]
} Qa2 {[%emt 0:01:42]} 47. Rb7+ {[%emt 0:00:47]} Kf6 {[%emt 0:00:42]} 48. Rb2 {
[%emt 0:00:04]} Qd5 {[%emt 0:00:15]} 49. Rf1 {[%emt 0:00:24]} Ne6 {[%emt 0:05:
04]} 50. Qh6 {[%emt 0:01:09]} Ra8 {[%emt 0:06:37]} 51. Rb7 {[%emt 0:01:27]} Rg8
{[%emt 0:02:33]} 52. Qh7 {[%emt 0:00:55]} Rg7 {[%emt 0:00:57]} 53. Qh8 {
[%emt 0:00:33]} Qd6 {[%emt 0:00:30]} 54. Ra1 {[%emt 0:00:43]} Qxd3 {[%emt 0:00:
22]} 55. Rxg7 {[%emt 0:01:33]} Qe2+ {[%emt 0:00:16]} 56. Kg1 {[%emt 0:00:15]}
Qe3+ {[%emt 0:00:07]} 57. Kg2 {[%emt 0:00:33]} Qe2+ {[%emt 0:00:16]} 58. Kg1 {
[%emt 0:00:09]} Qe3+ {[%emt 0:00:15]} 1/2-1/2

[Event "23rd ETCC Women 2021"]
[Site "Catez"]
[Date "2021.11.15"]
[Round "4.42"]
[White "Urh, Zala"]
[Black "Eric, Jovana"]
[Result "0-1"]
[ECO "E20"]
[WhiteElo "2332"]
[BlackElo "2253"]
[Annotator "ChessBase"]
[PlyCount "112"]
[EventDate "2021.11.08"]
[EventType "team-tourn"]
[EventCountry "SLO"]
[SourceTitle "playchess.com"]
[Source "ChessBase"]
[SourceQuality "1"]
[WhiteTeam "Slovenia"]
[BlackTeam "Serbia"]
[WhiteTeamCountry "SLO"]
[BlackTeamCountry "SRB"]
[TimeControl "40/5400+30:1800+30"]

1. d4 {[%emt 0:00:03]} Nf6 {[%emt 0:00:08]} 2. c4 {[%emt 0:00:11]} e6 {[%emt 0:
00:11]} 3. Nc3 {[%emt 0:00:19]} Bb4 {[%emt 0:00:15]} 4. g3 {[%emt 0:00:17]} c5
{[%emt 0:02:09]} 5. Nf3 {[%emt 0:02:08]} O-O {[%emt 0:01:39]} 6. Bg2 {[%emt 0:
00:59]} cxd4 {[%emt 0:02:39]} 7. Nxd4 {[%emt 0:01:15]} Qc7 {[%emt 0:00:55]} 8.
Qd3 {[%emt 0:10:22]} Nc6 {[%emt 0:06:35]} 9. Nxc6 {[%emt 0:02:15]} dxc6 {
[%emt 0:01:46]} 10. O-O {[%emt 0:04:18]} e5 {[%emt 0:00:33]} 11. b3 {[%emt 0:
08:09]} Be6 {[%emt 0:05:44]} 12. Bb2 {[%emt 0:00:44]} a5 {[%emt 0:01:33]} 13.
e4 {[%emt 0:05:59]} Nd7 {[%emt 0:03:42]} 14. a3 {[%emt 0:08:23]} Be7 {[%emt 0:
02:16]} 15. Nd1 {[%emt 0:01:34]} Nc5 {[%emt 0:04:53]} 16. Qc2 {[%emt 0:07:50]}
a4 {[%emt 0:06:50]} 17. bxa4 {[%emt 0:05:54]} Nxa4 {[%emt 0:01:45]} 18. Bc1 {
[%emt 0:03:04]} Bc5 {[%emt 0:09:21]} 19. Be3 {[%emt 0:02:25]} Qe7 {[%emt 0:00:
29]} 20. Bxc5 {[%emt 0:01:16]} Qxc5 {[%emt 0:00:07]} 21. Ne3 {[%emt 0:01:25]}
Nb6 {[%emt 0:01:22]} 22. Rfb1 {[%emt 0:02:19]} Ra7 {[%emt 0:03:17]} 23. Bf1 {
[%emt 0:02:20]} Rfa8 {[%emt 0:01:22]} 24. Qb2 {[%emt 0:02:10]} Nd7 {[%emt 0:02:
33]} 25. a4 {[%emt 0:02:39]} Nf6 {[%emt 0:13:40]} 26. Bg2 {[%emt 0:02:59]} g6 {
[%emt 0:04:39]} 27. h3 {[%emt 0:07:41]} Nd7 {[%emt 0:04:12]} 28. Bf1 {[%emt 0:
01:03]} Qe7 {[%emt 0:02:08]} 29. Nd1 {[%emt 0:02:23]} f6 {[%emt 0:01:08]} 30.
Nc3 {[%emt 0:01:53]} Nc5 {[%emt 0:00:28]} 31. Qb4 {[%emt 0:01:48]} Ra5 {
[%emt 0:01:25]} 32. Rd1 {[%emt 0:01:36]} Kf7 {[%emt 0:00:39]} 33. Rdb1 {
[%emt 0:02:37]} R8a7 {[%emt 0:00:42]} 34. Qb6 {[%emt 0:01:53]} Bc8 {[%emt 0:02:
06]} 35. Qb4 {[%emt 0:01:23]} Ne6 {[%emt 0:00:57]} 36. Qb6 {[%emt 0:02:12]} Qc5
{[%emt 0:01:31]} 37. Qb2 {[%emt 0:01:02]} Nd4 {[%emt 0:00:32]} 38. Kh1 {
[%emt 0:00:18]} Be6 {[%emt 0:02:11]} 39. Rc1 {[%emt 0:01:09]} Qd6 {[%emt 0:00:
31]} 40. Rd1 {[%emt 0:01:32]} Qd7 {[%emt 0:01:20]} 41. h4 {[%emt 0:06:39]} Kg7
{[%emt 0:10:50]} 42. f3 {[%emt 0:17:31]} Qf7 {[%emt 0:02:27]} 43. Bg2 {[%emt 0:
01:34]} Bxc4 {[%emt 0:00:32]} 44. f4 {[%emt 0:00:43]} b5 {[%emt 0:01:08]} 45.
Rac1 {[%emt 0:03:21]} Bb3 {[%emt 0:03:13]} 46. Rf1 {[%emt 0:00:18]} exf4 {
[%emt 0:01:11]} 47. gxf4 {[%emt 0:00:21]} bxa4 {[%emt 0:00:28]} 48. e5 {
[%emt 0:01:20]} fxe5 {[%emt 0:03:40]} 49. fxe5 {[%emt 0:00:08]} Qe7 {[%emt 0:
00:10]} 50. Ne4 {[%emt 0:01:17]} Qxe5 {[%emt 0:01:51]} 51. Qf2 {[%emt 0:00:45]}
Nf5 {[%emt 0:03:08]} 52. Rce1 {[%emt 0:00:42]} Qd4 {[%emt 0:03:43]} 53. Qf4 {
[%emt 0:00:04]} Rf7 {[%emt 0:02:58]} 54. Qb8 {[%emt 0:02:22]} Nxh4 {[%emt 0:01:
39]} 55. Nd6 {[%emt 0:00:34]} Nxg2 {[%emt 0:04:57]} 56. Ne8+ {[%emt 0:00:12]}
Kh6 {[%emt 0:00:25]} 0-1

[Event "23rd ETCC Women 2021"]
[Site "Catez"]
[Date "2021.11.15"]
[Round "4.43"]
[White "Manakova, Maria"]
[Black "Janzelj, Lara"]
[Result "0-1"]
[ECO "A54"]
[WhiteElo "2289"]
[BlackElo "2150"]
[Annotator "NA"]
[PlyCount "130"]
[EventDate "2021.11.08"]
[EventType "team-tourn"]
[EventCountry "SLO"]
[SourceTitle "playchess.com"]
[Source "ChessBase"]
[SourceQuality "1"]
[WhiteTeam "Serbia"]
[BlackTeam "Slovenia"]
[WhiteTeamCountry "SRB"]
[BlackTeamCountry "SLO"]
[TimeControl "40/5400+30:1800+30"]

1. c4 {[%emt 0:00:05]} e5 {[%emt 0:00:31]} 2. Nc3 {[%emt 0:00:50]} Nf6 {
[%emt 0:00:29]} 3. e3 {[%emt 0:01:08]} Be7 {[%emt 0:03:21]} 4. Nf3 {[%emt 0:00:
40]} d6 {[%emt 0:00:25]} 5. d4 {[%emt 0:00:31]} Nbd7 {[%emt 0:00:29]} 6. Bd3 {
[%emt 0:04:12]} O-O {[%emt 0:03:03]} 7. Qc2 {[%emt 0:00:11]} c6 {[%emt 0:01:58]
} 8. O-O {[%emt 0:06:34]} Re8 {[%emt 0:02:49]} 9. b3 {[%emt 0:11:42]} Bf8 {
[%emt 0:02:17]} 10. Ng5 {[%emt 0:03:06]} g6 {[%emt 0:01:34]} 11. f4 {[%emt 0:
01:32]} Bh6 {[%emt 0:10:32]} 12. Qf2 {[%emt 0:07:38]} Qe7 {[%emt 0:02:14]} 13.
Bd2 {[%emt 0:07:10]} Kg7 {[%emt 0:08:54]} 14. Rae1 {[%emt 0:01:18]} Ng8 {
[%emt 0:03:06]} 15. fxe5 {[%emt 0:14:54]} Bxg5 {[%emt 0:00:38]} 16. exd6 {
[%emt 0:00:04]} Qf6 {[%emt 0:05:34]} 17. Ne4 {[%emt 0:20:31]} Qxf2+ {[%emt 0:
01:48]} 18. Rxf2 {[%emt 0:00:03]} Bd8 {[%emt 0:02:37]} 19. Bc3 {[%emt 0:01:36]}
f5 {[%emt 0:01:48]} 20. d5+ {[%emt 0:00:49]} Ne5 {[%emt 0:01:37]} 21. Nc5 {
[%emt 0:01:19]} Nf6 {[%emt 0:00:24]} 22. dxc6 {[%emt 0:08:27]} bxc6 {[%emt 0:
00:44]} 23. Rd2 {[%emt 0:03:43]} Nfd7 {[%emt 0:06:22]} 24. Na4 {[%emt 0:02:13]}
Kf7 {[%emt 0:03:43]} 25. Bc2 {[%emt 0:00:29]} c5 {[%emt 0:04:10]} 26. Rf1 {
[%emt 0:00:38]} Bg5 {[%emt 0:00:45]} 27. Re2 {[%emt 0:00:18]} Bb7 {[%emt 0:04:
01]} 28. e4 {[%emt 0:00:10]} Kg8 {[%emt 0:01:28]} 29. Rfe1 {[%emt 0:01:47]} f4
{[%emt 0:01:14]} 30. Rf1 {[%emt 0:00:58]} Bh6 {[%emt 0:01:20]} 31. Bd2 {
[%emt 0:00:15]} g5 {[%emt 0:00:27]} 32. h4 {[%emt 0:00:16]} Rf8 {[%emt 0:00:38]
} 33. hxg5 {[%emt 0:00:42]} Bxg5 {[%emt 0:00:14]} 34. Ref2 {[%emt 0:00:04]} Ng6
{[%emt 0:01:01]} 35. g3 {[%emt 0:00:11]} Bf6 {[%emt 0:00:36]} 36. Bc3 {[%emt 0:
00:47]} Bxc3 {[%emt 0:00:28]} 37. Nxc3 {[%emt 0:00:02]} fxg3 {[%emt 0:00:12]}
38. Rxf8+ {[%emt 0:01:05]} Rxf8 {[%emt 0:00:41]} 39. Rxf8+ {[%emt 0:00:28]}
Kxf8 {[%emt 0:00:35]} 40. Kg2 {[%emt 0:00:08]} h5 {[%emt 0:01:36]} 41. Kxg3 {
[%emt 0:30:08]} Kf7 {[%emt 0:34:29]} 42. a3 {[%emt 0:01:52]} h4+ {[%emt 0:02:
53]} 43. Kh3 {[%emt 0:00:00]} Bc8 {[%emt 0:00:00]} 44. b4 {[%emt 0:00:00]} Kf6
{[%emt 0:00:00]} 45. Nd5+ {[%emt 0:00:00]} Kg5 {[%emt 0:00:00]} 46. bxc5 {
[%emt 0:00:00]} Nxc5+ {[%emt 0:00:00]} 47. Kh2 {[%emt 0:00:00]} Ne5 {[%emt 0:
00:00]} 48. a4 {[%emt 0:00:00]} Nxc4 {[%emt 0:00:00]} 49. e5 {[%emt 0:01:57]}
Nxe5 {[%emt 0:00:00]} 50. Bd1 {[%emt 0:01:34]} Bd7 {[%emt 0:00:00]} 51. a5 {
[%emt 0:00:10]} Nb7 {[%emt 0:00:00]} 52. a6 {[%emt 0:00:37]} Nxd6 {[%emt 0:00:
00]} 53. Nb4 {[%emt 0:01:06]} Ng4+ {[%emt 0:00:00]} 54. Kg1 {[%emt 0:00:34]}
Kf4 {[%emt 0:00:00]} 55. Nd5+ {[%emt 0:00:14]} Kg3 {[%emt 0:00:00]} 56. Nc3 {
[%emt 0:00:59]} h3 {[%emt 0:00:00]} 57. Ne2+ {[%emt 0:00:09]} Kh4 {[%emt 0:00:
00]} 58. Nd4 {[%emt 0:00:39]} Ne4 {[%emt 0:00:00]} 59. Bf3 {[%emt 0:00:31]} Ng3
{[%emt 0:00:00]} 60. Bh1 {[%emt 0:00:52]} Nxh1 {[%emt 0:00:00]} 61. Kxh1 {
[%emt 0:00:14]} Bc8 {[%emt 0:00:00]} 62. Kg1 {[%emt 0:00:36]} Bxa6 {[%emt 0:00:
00]} 63. Nf5+ {[%emt 0:00:38]} Kg5 {[%emt 0:00:00]} 64. Ng3 {[%emt 0:00:07]}
Bb7 {[%emt 0:00:00]} 65. Nf1 {[%emt 0:00:15]} Kh4 {[%emt 0:00:00]} 0-1

[Event "23rd ETCC Women 2021"]
[Site "Catez"]
[Date "2021.11.15"]
[Round "4.44"]
[White "Rozman, Monika"]
[Black "Gajcin, Marina"]
[Result "1/2-1/2"]
[ECO "B45"]
[WhiteElo "2112"]
[BlackElo "2198"]
[Annotator "NA"]
[PlyCount "109"]
[EventDate "2021.11.08"]
[EventType "team-tourn"]
[EventCountry "SLO"]
[SourceTitle "playchess.com"]
[Source "ChessBase"]
[SourceQuality "1"]
[WhiteTeam "Slovenia"]
[BlackTeam "Serbia"]
[WhiteTeamCountry "SLO"]
[BlackTeamCountry "SRB"]
[TimeControl "40/5400+30:1800+30"]

1. e4 {[%emt 0:00:02]} c5 {[%emt 0:00:06]} 2. Nc3 {[%emt 0:00:03]} e6 {[%emt 0:
03:46]} 3. Nge2 {[%emt 0:01:09]} Nc6 {[%emt 0:01:07]} 4. d4 {[%emt 0:00:04]}
cxd4 {[%emt 0:00:05]} 5. Nxd4 {[%emt 0:00:03]} Nf6 {[%emt 0:00:08]} 6. Be2 {
[%emt 0:05:14]} Bb4 {[%emt 0:09:18]} 7. Nxc6 {[%emt 0:04:06]} bxc6 {[%emt 0:11:
46]} 8. O-O {[%emt 0:04:22]} e5 {[%emt 0:07:46]} 9. Qd3 {[%emt 0:04:21]} O-O {
[%emt 0:09:02]} 10. Rd1 {[%emt 0:02:02]} Re8 {[%emt 0:06:59]} 11. Bg5 {[%emt 0:
02:50]} h6 {[%emt 0:00:41]} 12. Bh4 {[%emt 0:02:45]} Be7 {[%emt 0:06:16]} 13.
Bxf6 {[%emt 0:04:06]} Bxf6 {[%emt 0:01:16]} 14. Bg4 {[%emt 0:00:04]} Qc7 {
[%emt 0:07:35]} 15. Qc4 {[%emt 0:09:14]} d6 {[%emt 0:12:11]} 16. Nd5 {[%emt 0:
11:32]} Qd8 {[%emt 0:00:09]} 17. Ne3 {[%emt 0:03:12]} Bxg4 {[%emt 0:03:36]} 18.
Nxg4 {[%emt 0:00:02]} Rc8 {[%emt 0:00:10]} 19. Rd3 {[%emt 0:01:41]} Bg5 {
[%emt 0:03:32]} 20. Rad1 {[%emt 0:03:00]} Re6 {[%emt 0:00:29]} 21. g3 {[%emt 0:
02:50]} h5 {[%emt 0:03:07]} 22. Ne3 {[%emt 0:02:47]} Bxe3 {[%emt 0:03:00]} 23.
Rxe3 {[%emt 0:00:06]} Re7 {[%emt 0:03:01]} 24. Qa6 {[%emt 0:03:49]} Rd7 {
[%emt 0:00:47]} 25. Red3 {[%emt 0:00:52]} Rcc7 {[%emt 0:01:01]} 26. c4 {
[%emt 0:02:11]} Kf8 {[%emt 0:02:14]} 27. Qa3 {[%emt 0:07:04]} c5 {[%emt 0:00:
48]} 28. Qa6 {[%emt 0:00:56]} Ke7 {[%emt 0:00:17]} 29. Rd5 {[%emt 0:01:24]} Qc8
{[%emt 0:00:33]} 30. Qa3 {[%emt 0:00:09]} Rd8 {[%emt 0:00:40]} 31. Qe3 {
[%emt 0:03:07]} f6 {[%emt 0:00:32]} 32. f4 {[%emt 0:00:39]} Qg4 {[%emt 0:02:55]
} 33. h3 {[%emt 0:06:22]} Qg6 {[%emt 0:00:56]} 34. Kh2 {[%emt 0:00:13]} Rcd7 {
[%emt 0:00:47]} 35. Rf1 {[%emt 0:00:55]} Qh6 {[%emt 0:00:18]} 36. Qf2 {[%emt 0:
01:17]} Qg6 {[%emt 0:00:30]} 37. Qf3 {[%emt 0:02:51]} Rb8 {[%emt 0:00:14]} 38.
Rf2 {[%emt 0:00:17]} Rdd8 {[%emt 0:00:36]} 39. Rfd2 {[%emt 0:02:02]} Rd7 {
[%emt 0:01:09]} 40. Qe3 {[%emt 0:06:09]} Rbd8 {[%emt 0:00:32]} 41. Rd1 {
[%emt 0:31:05]} Qh6 {[%emt 0:08:52]} 42. Rf1 {[%emt 0:00:00]} Rb8 {[%emt 0:08:
01]} 43. b3 {[%emt 0:00:00]} Qg6 {[%emt 0:00:55]} 44. Rf2 {[%emt 0:00:00]} Qh6
{[%emt 0:06:22]} 45. Qc3 {[%emt 0:00:00]} Rdb7 {[%emt 0:02:52]} 46. Rd1 {
[%emt 0:00:00]} Qg6 {[%emt 0:01:43]} 47. Qd3 {[%emt 0:00:00]} Rd7 {[%emt 0:00:
09]} 48. Qd5 {[%emt 0:00:00]} h4 {[%emt 0:02:22]} 49. gxh4 {[%emt 0:00:00]}
exf4 {[%emt 0:01:25]} 50. Rxf4 {[%emt 0:00:00]} Rh8 {[%emt 0:00:33]} 51. Rg4 {
[%emt 0:00:00]} Qf7 {[%emt 0:00:33]} 52. Rdg1 {[%emt 0:00:00]} Qxd5 {[%emt 0:
00:15]} 53. exd5 {[%emt 0:00:00]} Kf8 {[%emt 0:00:07]} 54. Re1 {[%emt 0:00:00]}
Rh5 {[%emt 0:00:37]} 55. Kg3 {[%emt 0:00:00]} 1/2-1/2